[Event "*** Titled Tuesday Blitz"]
[Site "Chess.com"]
[Date "2020.04.28"]
[Round "6"]
[White "GukeshDommaraju"]
[Black "mikolka1985"]
[Result "1-0"]
[WhiteElo "2753"]
[BlackElo "2581"]
[TimeControl "180+1"]
[EndTime "11:07:27 PDT"]
[Termination "GukeshDommaraju won on time"]

1. e4 {[%clk 0:03:00.9]} 1... e5 {[%clk 0:02:58.9]} 2. Nf3 {[%clk 0:03:01.1]}
2... Nc6 {[%clk 0:02:58.9]} 3. Bb5 {[%clk 0:03:01.2]} 3... a6 {[%clk 0:02:58.4]}
4. Ba4 {[%clk 0:03:01.6]} 4... Nf6 {[%clk 0:02:58.5]} 5. O-O {[%clk 0:03:01.9]}
5... Be7 {[%clk 0:02:58.7]} 6. Re1 {[%clk 0:03:02]} 6... b5 {[%clk 0:02:57]} 7.
Bb3 {[%clk 0:03:02.4]} 7... d6 {[%clk 0:02:56.9]} 8. c3 {[%clk 0:03:02.9]} 8...
O-O {[%clk 0:02:56.5]} 9. h3 {[%clk 0:03:03.5]} 9... Nb8 {[%clk 0:02:55.6]} 10.
d4 {[%clk 0:03:03.8]} 10... Nbd7 {[%clk 0:02:55.3]} 11. Nbd2 {[%clk 0:03:04.4]}
11... Bb7 {[%clk 0:02:54.9]} 12. Bc2 {[%clk 0:03:05]} 12... Re8 {[%clk
0:02:49.6]} 13. Nf1 {[%clk 0:03:05]} 13... Bf8 {[%clk 0:02:48.5]} 14. Ng3 {[%clk
0:03:05.1]} 14... g6 {[%clk 0:02:47.8]} 15. a4 {[%clk 0:03:05.5]} 15... c5
{[%clk 0:02:46.5]} 16. d5 {[%clk 0:03:05.8]} 16... c4 {[%clk 0:02:45.1]} 17. Bg5
{[%clk 0:03:06]} 17... h6 {[%clk 0:02:44]} 18. Be3 {[%clk 0:03:05.6]} 18... Nc5
{[%clk 0:02:44.1]} 19. Qd2 {[%clk 0:02:45.9]} 19... Kh7 {[%clk 0:02:41.7]} 20.
a5 {[%clk 0:02:46]} 20... Bc8 {[%clk 0:02:32.7]} 21. h4 {[%clk 0:02:39.4]} 21...
Ng4 {[%clk 0:02:24.1]} 22. Bxc5 {[%clk 0:02:37.8]} 22... dxc5 {[%clk 0:02:23.4]}
23. h5 {[%clk 0:02:37.7]} 23... Nf6 {[%clk 0:02:14.8]} 24. hxg6+ {[%clk
0:02:35.4]} 24... fxg6 {[%clk 0:02:13.9]} 25. Nh2 {[%clk 0:02:26]} 25... h5
{[%clk 0:02:10.8]} 26. Rad1 {[%clk 0:01:58.7]} 26... Bh6 {[%clk 0:02:09.3]} 27.
Qe2 {[%clk 0:01:58.1]} 27... Qd6 {[%clk 0:02:07.9]} 28. Ngf1 {[%clk 0:01:53.8]}
28... Bd7 {[%clk 0:02:05.4]} 29. Ne3 {[%clk 0:01:51.4]} 29... Rf8 {[%clk
0:01:58.8]} 30. g3 {[%clk 0:01:49]} 30... Rae8 {[%clk 0:01:56.8]} 31. Ng2 {[%clk
0:01:43.6]} 31... Ng4 {[%clk 0:01:52]} 32. f3 {[%clk 0:01:36.7]} 32... Nf6
{[%clk 0:01:33.2]} 33. f4 {[%clk 0:01:01.3]} 33... Bg4 {[%clk 0:01:29.2]} 34.
Nxg4 {[%clk 0:01:00.9]} 34... Nxg4 {[%clk 0:01:28.9]} 35. f5 {[%clk 0:00:55.9]}
35... gxf5 {[%clk 0:01:27.5]} 36. exf5 {[%clk 0:00:52.9]} 36... e4 {[%clk
0:01:27.6]} 37. Bxe4 {[%clk 0:00:48.4]} 37... Qxg3 {[%clk 0:01:26]} 38. Qf3
{[%clk 0:00:40.9]} 38... Qh2+ {[%clk 0:01:19.2]} 39. Kf1 {[%clk 0:00:39.8]}
39... Nf6 {[%clk 0:00:56.8]} 40. d6 {[%clk 0:00:28.6]} 40... Rg8 {[%clk
0:00:47.8]} 41. d7 {[%clk 0:00:26.1]} 41... Qh1+ {[%clk 0:00:46.5]} 42. Kf2
{[%clk 0:00:21.1]} 42... Nxe4+ {[%clk 0:00:38.4]} 43. Rxe4 {[%clk 0:00:19.4]}
43... Rxg2+ {[%clk 0:00:35.5]} 44. Qxg2 {[%clk 0:00:18.9]} 1-0

[Event "*** Titled Tuesday Blitz"]
[Site "Chess.com"]
[Date "2020.04.28"]
[Round "6"]
[White "Harsha_Bharathakoti"]
[Black "SoltaniciR"]
[Result "1/2-1/2"]
[WhiteElo "2739"]
[BlackElo "2590"]
[TimeControl "180+1"]
[EndTime "11:07:28 PDT"]
[Termination "Game drawn by repetition"]

1. e4 {[%clk 0:03:00.9]} 1... c5 {[%clk 0:02:59.9]} 2. Nf3 {[%clk 0:03:00.7]}
2... d6 {[%clk 0:03:00]} 3. d4 {[%clk 0:03:00.6]} 3... cxd4 {[%clk 0:03:00.2]}
4. Nxd4 {[%clk 0:03:01.5]} 4... Nf6 {[%clk 0:03:00.5]} 5. Nc3 {[%clk 0:03:01.8]}
5... a6 {[%clk 0:03:01]} 6. Be2 {[%clk 0:03:01.7]} 6... e6 {[%clk 0:03:00.9]} 7.
Be3 {[%clk 0:02:59.3]} 7... Qc7 {[%clk 0:03:00.7]} 8. O-O {[%clk 0:02:59.1]}
8... b5 {[%clk 0:03:00.2]} 9. Bf3 {[%clk 0:02:49.4]} 9... Bb7 {[%clk 0:02:59.8]}
10. Bg5 {[%clk 0:02:01.3]} 10... Nbd7 {[%clk 0:02:58]} 11. Re1 {[%clk
0:01:50.1]} 11... Be7 {[%clk 0:02:57.4]} 12. a3 {[%clk 0:01:38.9]} 12... O-O
{[%clk 0:02:55]} 13. Nb3 {[%clk 0:01:35]} 13... Rac8 {[%clk 0:02:52.4]} 14. Be2
{[%clk 0:01:29.4]} 14... h6 {[%clk 0:02:43.6]} 15. Bh4 {[%clk 0:01:27.1]} 15...
Rfe8 {[%clk 0:02:43.7]} 16. Bf1 {[%clk 0:01:26.7]} 16... Ne5 {[%clk 0:02:40.1]}
17. Bg3 {[%clk 0:01:25.7]} 17... Red8 {[%clk 0:02:23.6]} 18. Qd2 {[%clk
0:01:24.2]} 18... Nh5 {[%clk 0:02:16.3]} 19. Rad1 {[%clk 0:01:23.5]} 19... Nxg3
{[%clk 0:02:15.4]} 20. hxg3 {[%clk 0:01:24.3]} 20... Qb6 {[%clk 0:02:08.9]} 21.
Qd4 {[%clk 0:01:21]} 21... Qc7 {[%clk 0:01:56.2]} 22. Be2 {[%clk 0:01:14.6]}
22... Bf6 {[%clk 0:01:46.6]} 23. Qe3 {[%clk 0:01:11.8]} 23... Ba8 {[%clk
0:01:42.7]} 24. Nd4 {[%clk 0:01:02]} 24... Nc4 {[%clk 0:01:40]} 25. Bxc4 {[%clk
0:01:01.6]} 25... Qxc4 {[%clk 0:01:40.9]} 26. Nde2 {[%clk 0:00:58.9]} 26... b4
{[%clk 0:01:38.7]} 27. axb4 {[%clk 0:00:52.3]} 27... Qxb4 {[%clk 0:01:38.9]} 28.
Rb1 {[%clk 0:00:52.3]} 28... a5 {[%clk 0:01:31]} 29. Qd3 {[%clk 0:00:51.8]}
29... d5 {[%clk 0:01:09.3]} 30. exd5 {[%clk 0:00:48.4]} 30... Bxd5 {[%clk
0:01:08.8]} 31. Nxd5 {[%clk 0:00:42.9]} 31... Rxd5 {[%clk 0:01:09.2]} 32. Qb3
{[%clk 0:00:29]} 32... Qxb3 {[%clk 0:01:02.3]} 33. cxb3 {[%clk 0:00:29.9]} 33...
Rc2 {[%clk 0:01:01.4]} 34. Nc3 {[%clk 0:00:24.1]} 34... Bxc3 {[%clk 0:00:55.6]}
35. bxc3 {[%clk 0:00:25]} 35... Rxc3 {[%clk 0:00:55.6]} 36. b4 {[%clk
0:00:25.3]} 36... axb4 {[%clk 0:00:46.8]} 37. Rxb4 {[%clk 0:00:26.2]} 37... Rc2
{[%clk 0:00:46.3]} 38. Ra1 {[%clk 0:00:25]} 38... Rdd2 {[%clk 0:00:43.1]} 39.
Rf4 {[%clk 0:00:24.6]} 39... f5 {[%clk 0:00:42.8]} 40. Ra7 {[%clk 0:00:22.5]}
40... h5 {[%clk 0:00:24.1]} 41. Ra1 {[%clk 0:00:20.4]} 41... Kh7 {[%clk
0:00:18.3]} 42. Re1 {[%clk 0:00:19.6]} 42... Re2 {[%clk 0:00:15.5]} 43. Rxe2
{[%clk 0:00:19.2]} 43... Rxe2 {[%clk 0:00:16.1]} 44. f3 {[%clk 0:00:19.5]} 44...
g5 {[%clk 0:00:12.3]} 45. Ra4 {[%clk 0:00:19.4]} 45... Kg6 {[%clk 0:00:11.9]}
46. Ra8 {[%clk 0:00:19.8]} 46... Kf6 {[%clk 0:00:10.3]} 47. Rh8 {[%clk
0:00:19.7]} 47... Kg6 {[%clk 0:00:10.4]} 48. Rg8+ {[%clk 0:00:19.9]} 48... Kf6
{[%clk 0:00:09.8]} 49. Rh8 {[%clk 0:00:20.1]} 49... Kg6 {[%clk 0:00:09.9]} 50.
Rg8+ {[%clk 0:00:19.9]} 50... Kf6 {[%clk 0:00:08.8]} 51. Rh8 {[%clk 0:00:20.1]}
1/2-1/2

[Event "*** Titled Tuesday Blitz"]
[Site "Chess.com"]
[Date "2020.04.28"]
[Round "6"]
[White "Natalya_Buksa"]
[Black "quesfr"]
[Result "0-1"]
[WhiteElo "2515"]
[BlackElo "2251"]
[TimeControl "180+1"]
[EndTime "11:07:28 PDT"]
[Termination "quesfr won by resignation"]

1. d4 {[%clk 0:03:00.9]} 1... d5 {[%clk 0:02:59.3]} 2. Nc3 {[%clk 0:03:01]} 2...
e6 {[%clk 0:02:59.1]} 3. Bf4 {[%clk 0:03:01.4]} 3... Bd6 {[%clk 0:02:57.5]} 4.
e3 {[%clk 0:02:58.4]} 4... Bxf4 {[%clk 0:02:55]} 5. exf4 {[%clk 0:02:58.3]} 5...
c5 {[%clk 0:02:55.7]} 6. Nf3 {[%clk 0:02:58]} 6... Nc6 {[%clk 0:02:54.5]} 7. Bb5
{[%clk 0:02:57.9]} 7... cxd4 {[%clk 0:02:53.7]} 8. Nxd4 {[%clk 0:02:56.7]} 8...
Bd7 {[%clk 0:02:53.6]} 9. O-O {[%clk 0:02:56.1]} 9... Nf6 {[%clk 0:02:50.5]} 10.
f5 {[%clk 0:02:56]} 10... O-O {[%clk 0:02:45.6]} 11. fxe6 {[%clk 0:02:55.7]}
11... fxe6 {[%clk 0:02:45.8]} 12. Nf3 {[%clk 0:02:50.2]} 12... Qc7 {[%clk
0:02:29.6]} 13. Re1 {[%clk 0:02:38.5]} 13... Ng4 {[%clk 0:02:18.2]} 14. h3
{[%clk 0:02:36.5]} 14... Rxf3 {[%clk 0:02:01.5]} 15. hxg4 {[%clk 0:02:05]} 15...
Rxf2 {[%clk 0:01:41.3]} 16. Kxf2 {[%clk 0:01:49.7]} 16... Qh2 {[%clk 0:01:41.1]}
17. Re3 {[%clk 0:01:29.5]} 17... Rf8+ {[%clk 0:01:22.8]} 18. Rf3 {[%clk
0:01:29.5]} 18... Ne5 {[%clk 0:01:23.1]} 19. Rxf8+ {[%clk 0:01:10.8]} 19... Kxf8
{[%clk 0:01:24]} 20. Bxd7 {[%clk 0:01:02.6]} 20... Qf4+ {[%clk 0:01:02.4]} 21.
Kg1 {[%clk 0:00:38.8]} 21... Qe3+ {[%clk 0:01:01.7]} 22. Kf1 {[%clk 0:00:39.1]}
22... Qf4+ {[%clk 0:01:00]} 23. Ke1 {[%clk 0:00:39.4]} 23... Qg3+ {[%clk
0:00:56]} 24. Kf1 {[%clk 0:00:39.7]} 24... Qf4+ {[%clk 0:00:55.8]} 25. Kg1
{[%clk 0:00:37.5]} 25... Qe3+ {[%clk 0:00:55.6]} 26. Kh2 {[%clk 0:00:33.2]}
26... Qh6+ {[%clk 0:00:54.9]} 27. Kg3 {[%clk 0:00:32.5]} 27... Qe3+ {[%clk
0:00:54.3]} 28. Qf3+ {[%clk 0:00:33]} 28... Nxf3 {[%clk 0:00:53.9]} 29. gxf3
{[%clk 0:00:33.9]} 29... a6 {[%clk 0:00:38.8]} 30. Bc8 {[%clk 0:00:25.6]} 30...
Qb6 {[%clk 0:00:29.4]} 31. Re1 {[%clk 0:00:09.5]} 31... Qc7+ {[%clk 0:00:28]}
32. Kf2 {[%clk 0:00:09.4]} 32... Qxc8 {[%clk 0:00:28.4]} 33. Re2 {[%clk
0:00:09.4]} 33... Qc5+ {[%clk 0:00:28.1]} 34. Kg2 {[%clk 0:00:09.2]} 34... Kf7
{[%clk 0:00:28]} 35. g5 {[%clk 0:00:08.6]} 35... Qb4 {[%clk 0:00:27.6]} 36. Nd1
{[%clk 0:00:06.9]} 36... Qf4 {[%clk 0:00:28]} 37. Ne3 {[%clk 0:00:06.8]} 37...
Qxg5+ {[%clk 0:00:28.2]} 38. Kf2 {[%clk 0:00:07.4]} 38... Qh4+ {[%clk
0:00:28.2]} 39. Kf1 {[%clk 0:00:07.5]} 39... Qh1+ {[%clk 0:00:27.6]} 40. Kf2
{[%clk 0:00:07.9]} 40... Qb1 {[%clk 0:00:26.3]} 41. Ng4 {[%clk 0:00:07.8]} 41...
Qxb2 {[%clk 0:00:25.6]} 42. Ne5+ {[%clk 0:00:08.4]} 42... Ke7 {[%clk 0:00:24.5]}
43. Nd3 {[%clk 0:00:08.8]} 43... Qxa2 {[%clk 0:00:24]} 44. Nc5 {[%clk
0:00:09.3]} 44... Qc4 {[%clk 0:00:20.2]} 45. Nxe6 {[%clk 0:00:09.7]} 45... Kf6
{[%clk 0:00:17.3]} 46. Nf8 {[%clk 0:00:07.6]} 46... Qc5+ {[%clk 0:00:16.7]} 47.
Kg3 {[%clk 0:00:07.6]} 47... Qxf8 {[%clk 0:00:17.6]} 48. f4 {[%clk 0:00:08]}
48... Qb8 {[%clk 0:00:17.5]} 49. Re5 {[%clk 0:00:08.1]} 49... Qxe5 {[%clk
0:00:16.9]} 0-1

[Event "*** Titled Tuesday Blitz"]
[Site "Chess.com"]
[Date "2020.04.28"]
[Round "6"]
[White "Caterpiller35"]
[Black "LucaBrasi1968"]
[Result "0-1"]
[WhiteElo "2297"]
[BlackElo "2466"]
[TimeControl "180+1"]
[EndTime "11:07:28 PDT"]
[Termination "LucaBrasi1968 won on time"]

1. d4 {[%clk 0:02:59.7]} 1... f5 {[%clk 0:02:59.1]} 2. Nc3 {[%clk 0:02:59.1]}
2... d5 {[%clk 0:02:58.3]} 3. Bf4 {[%clk 0:02:54.7]} 3... a6 {[%clk 0:02:58]} 4.
e3 {[%clk 0:02:54.2]} 4... Nf6 {[%clk 0:02:57.9]} 5. Nf3 {[%clk 0:02:52.5]} 5...
e6 {[%clk 0:02:58]} 6. Ne5 {[%clk 0:02:52.7]} 6... c5 {[%clk 0:02:57]} 7. g4
{[%clk 0:02:46.9]} 7... fxg4 {[%clk 0:02:52.3]} 8. h3 {[%clk 0:02:47]} 8... g3
{[%clk 0:02:50.9]} 9. Bxg3 {[%clk 0:02:45.3]} 9... Nc6 {[%clk 0:02:50.5]} 10.
Nxc6 {[%clk 0:02:15.1]} 10... bxc6 {[%clk 0:02:50.1]} 11. Bg2 {[%clk 0:02:09.8]}
11... Bd6 {[%clk 0:02:39.3]} 12. Bxd6 {[%clk 0:02:02.6]} 12... Qxd6 {[%clk
0:02:38.7]} 13. Na4 {[%clk 0:02:02.8]} 13... Nd7 {[%clk 0:02:09.6]} 14. O-O
{[%clk 0:01:42.7]} 14... O-O {[%clk 0:02:08.8]} 15. c4 {[%clk 0:01:42.3]} 15...
a5 {[%clk 0:01:51.6]} 16. dxc5 {[%clk 0:01:24.9]} 16... Nxc5 {[%clk 0:01:50.5]}
17. Nxc5 {[%clk 0:01:18.2]} 17... Qxc5 {[%clk 0:01:50.3]} 18. cxd5 {[%clk
0:01:18.5]} 18... cxd5 {[%clk 0:01:48.3]} 19. Rc1 {[%clk 0:01:15.1]} 19... Qe7
{[%clk 0:01:33.2]} 20. Qd4 {[%clk 0:01:05.9]} 20... Ba6 {[%clk 0:01:20.6]} 21.
Rfd1 {[%clk 0:01:03.1]} 21... Rac8 {[%clk 0:01:09.8]} 22. Qb6 {[%clk 0:00:58.3]}
22... Rxc1 {[%clk 0:00:57.2]} 23. Rxc1 {[%clk 0:00:57]} 23... Bd3 {[%clk
0:00:57.3]} 24. Qxa5 {[%clk 0:00:43.7]} 24... Qg5 {[%clk 0:00:52.6]} 25. Qc7
{[%clk 0:00:21.4]} 25... Qf6 {[%clk 0:00:42.3]} 26. Qg3 {[%clk 0:00:18.8]} 26...
Qxb2 {[%clk 0:00:40.5]} 27. Rc7 {[%clk 0:00:18.2]} 27... Bg6 {[%clk 0:00:29.4]}
28. a4 {[%clk 0:00:16.6]} 28... Qa1+ {[%clk 0:00:25.3]} 29. Kh2 {[%clk
0:00:16.6]} 29... Qxa4 {[%clk 0:00:25.1]} 30. h4 {[%clk 0:00:17]} 30... Qa1
{[%clk 0:00:22.5]} 31. Bh3 {[%clk 0:00:14.7]} 31... Qf6 {[%clk 0:00:21.6]} 32.
f4 {[%clk 0:00:11.8]} 32... Bf5 {[%clk 0:00:18.3]} 33. Bxf5 {[%clk 0:00:08.5]}
33... exf5 {[%clk 0:00:18.6]} 34. Rd7 {[%clk 0:00:08.7]} 34... Rd8 {[%clk
0:00:15.1]} 35. Qxg7+ {[%clk 0:00:03.2]} 35... Qxg7 {[%clk 0:00:13]} 36. Rxd8+
{[%clk 0:00:02.5]} 36... Qf8 {[%clk 0:00:10.3]} 37. Rxf8+ {[%clk 0:00:02.4]}
37... Kxf8 {[%clk 0:00:11.2]} 0-1

[Event "*** Titled Tuesday Blitz"]
[Site "Chess.com"]
[Date "2020.04.28"]
[Round "6"]
[White "EfM13"]
[Black "Gandrade2"]
[Result "0-1"]
[WhiteElo "2250"]
[BlackElo "2022"]
[TimeControl "180+1"]
[EndTime "11:07:28 PDT"]
[Termination "Gandrade2 won by resignation"]

1. e4 {[%clk 0:03:00.9]} 1... c5 {[%clk 0:02:59.5]} 2. c3 {[%clk 0:03:00.3]}
2... d5 {[%clk 0:02:58.9]} 3. exd5 {[%clk 0:03:00.5]} 3... Qxd5 {[%clk
0:02:59.8]} 4. d4 {[%clk 0:03:00.5]} 4... g6 {[%clk 0:02:59]} 5. Nf3 {[%clk
0:02:59.9]} 5... Bg7 {[%clk 0:02:57.7]} 6. Na3 {[%clk 0:02:57.5]} 6... cxd4
{[%clk 0:02:53.1]} 7. Nb5 {[%clk 0:02:55.6]} 7... Qd8 {[%clk 0:02:51.7]} 8.
Nbxd4 {[%clk 0:02:43.7]} 8... Nf6 {[%clk 0:02:47.8]} 9. Bb5+ {[%clk 0:02:42.1]}
9... Bd7 {[%clk 0:02:45.8]} 10. Qb3 {[%clk 0:02:36.2]} 10... O-O {[%clk
0:02:42.8]} 11. O-O {[%clk 0:02:34.2]} 11... a6 {[%clk 0:02:29.6]} 12. Bxd7
{[%clk 0:02:21.7]} 12... Qxd7 {[%clk 0:02:30.5]} 13. Ne5 {[%clk 0:02:21]} 13...
Qc7 {[%clk 0:02:27.2]} 14. Bf4 {[%clk 0:01:37.3]} 14... Qc8 {[%clk 0:02:20]} 15.
h3 {[%clk 0:01:30.4]} 15... Nbd7 {[%clk 0:02:19.5]} 16. Rfe1 {[%clk 0:01:20.5]}
16... Nxe5 {[%clk 0:02:16.2]} 17. Bxe5 {[%clk 0:01:20.1]} 17... Re8 {[%clk
0:02:15]} 18. Rad1 {[%clk 0:01:18.6]} 18... Nd7 {[%clk 0:02:14.6]} 19. Bxg7
{[%clk 0:01:15.7]} 19... Kxg7 {[%clk 0:02:15.5]} 20. Qd5 {[%clk 0:01:06.4]}
20... Nf6 {[%clk 0:02:12]} 21. Qe5 {[%clk 0:01:03.4]} 21... Kg8 {[%clk
0:01:46.9]} 22. Nf3 {[%clk 0:00:59]} 22... Qc4 {[%clk 0:01:39.5]} 23. b3 {[%clk
0:00:57.4]} 23... Qb5 {[%clk 0:01:38.9]} 24. c4 {[%clk 0:00:55.2]} 24... Qxe5
{[%clk 0:01:34]} 25. Rxe5 {[%clk 0:00:54.6]} 25... Rac8 {[%clk 0:01:30.9]} 26.
Rde1 {[%clk 0:00:52.6]} 26... e6 {[%clk 0:01:31.1]} 27. g4 {[%clk 0:00:33.3]}
27... Nd7 {[%clk 0:01:31.2]} 28. R5e2 {[%clk 0:00:32.2]} 28... Nc5 {[%clk
0:01:30.3]} 29. Rd2 {[%clk 0:00:31.8]} 29... Red8 {[%clk 0:01:29.1]} 30. Red1
{[%clk 0:00:31.9]} 30... Rxd2 {[%clk 0:01:27.6]} 31. Rxd2 {[%clk 0:00:32.2]}
31... a5 {[%clk 0:01:24.6]} 32. Kf1 {[%clk 0:00:26.8]} 32... Kf8 {[%clk
0:01:24.2]} 33. Ne5 {[%clk 0:00:25.6]} 33... Ke7 {[%clk 0:01:17.7]} 34. g5
{[%clk 0:00:22.3]} 34... Rc7 {[%clk 0:01:12.2]} 35. f3 {[%clk 0:00:21.9]} 35...
Nd7 {[%clk 0:01:05.3]} 36. Ng4 {[%clk 0:00:21.6]} 36... Rc5 {[%clk 0:01:00]} 37.
h4 {[%clk 0:00:20]} 37... Rf5 {[%clk 0:00:59.5]} 38. Ke2 {[%clk 0:00:19.5]}
38... f6 {[%clk 0:00:55.7]} 39. gxf6+ {[%clk 0:00:18]} 39... Nxf6 {[%clk
0:00:55.5]} 40. Nxf6 {[%clk 0:00:18]} 40... Rxf6 {[%clk 0:00:54.8]} 41. Ke3
{[%clk 0:00:18.3]} 41... Rf5 {[%clk 0:00:54.2]} 42. Ke4 {[%clk 0:00:18.3]} 42...
Rh5 {[%clk 0:00:39.6]} 43. Rh2 {[%clk 0:00:17.8]} 43... g5 {[%clk 0:00:38.3]}
44. f4 {[%clk 0:00:17.9]} 44... Rxh4 {[%clk 0:00:37.4]} 45. Rxh4 {[%clk
0:00:17]} 45... gxh4 {[%clk 0:00:38.3]} 46. Kf3 {[%clk 0:00:17.2]} 46... Kf6
{[%clk 0:00:36]} 47. Kg4 {[%clk 0:00:16.7]} 47... e5 {[%clk 0:00:34.5]} 48.
fxe5+ {[%clk 0:00:14.8]} 48... Kxe5 {[%clk 0:00:35.4]} 49. Kxh4 {[%clk
0:00:12.2]} 49... Kd4 {[%clk 0:00:35.9]} 50. Kg5 {[%clk 0:00:08.7]} 50... Kc3
{[%clk 0:00:31.9]} 51. Kf6 {[%clk 0:00:08.7]} 51... Kb2 {[%clk 0:00:29.8]} 52.
Ke5 {[%clk 0:00:08.5]} 52... Kxa2 {[%clk 0:00:29.7]} 53. Kd6 {[%clk 0:00:07.6]}
53... Kxb3 {[%clk 0:00:28.4]} 54. c5 {[%clk 0:00:08]} 54... a4 {[%clk
0:00:27.7]} 0-1

[Event "*** Titled Tuesday Blitz"]
[Site "Chess.com"]
[Date "2020.04.28"]
[Round "6"]
[White "kosmeg"]
[Black "ChessTraining77"]
[Result "1/2-1/2"]
[WhiteElo "2391"]
[BlackElo "2534"]
[TimeControl "180+1"]
[EndTime "11:07:29 PDT"]
[Termination "Game drawn by repetition"]

1. Nf3 {[%clk 0:03:00.3]} 1... d5 {[%clk 0:02:59.2]} 2. g3 {[%clk 0:03:00]} 2...
c6 {[%clk 0:02:59.2]} 3. Bg2 {[%clk 0:03:00.4]} 3... Bf5 {[%clk 0:02:59.3]} 4.
c4 {[%clk 0:03:00.6]} 4... e6 {[%clk 0:02:59]} 5. Qb3 {[%clk 0:02:59.6]} 5...
Qb6 {[%clk 0:02:57.9]} 6. d3 {[%clk 0:03:00]} 6... Nf6 {[%clk 0:02:56.2]} 7. Be3
{[%clk 0:03:00]} 7... Qxb3 {[%clk 0:02:55.6]} 8. axb3 {[%clk 0:03:00.9]} 8... a6
{[%clk 0:02:55]} 9. Nc3 {[%clk 0:03:01]} 9... Nbd7 {[%clk 0:02:54.2]} 10. Nh4
{[%clk 0:02:55.3]} 10... Bg4 {[%clk 0:02:53]} 11. h3 {[%clk 0:02:55.1]} 11...
Bh5 {[%clk 0:02:52.6]} 12. g4 {[%clk 0:02:55.5]} 12... Bg6 {[%clk 0:02:52.6]}
13. cxd5 {[%clk 0:02:54.2]} 13... cxd5 {[%clk 0:02:42.7]} 14. Kd2 {[%clk
0:02:44.1]} 14... Bc5 {[%clk 0:02:37.7]} 15. Nb5 {[%clk 0:02:28.6]} 15... Bxe3+
{[%clk 0:02:22.2]} 16. Kxe3 {[%clk 0:02:28.1]} 16... Ke7 {[%clk 0:02:22.4]} 17.
Nd4 {[%clk 0:02:24.4]} 17... Rhc8 {[%clk 0:02:18.5]} 18. Rhc1 {[%clk 0:02:22.6]}
18... Kd6 {[%clk 0:02:03.7]} 19. f4 {[%clk 0:02:21.5]} 19... Ne8 {[%clk
0:01:48.2]} 20. Kd2 {[%clk 0:02:12.5]} 20... f6 {[%clk 0:01:18.9]} 21. f5 {[%clk
0:02:05.8]} 21... exf5 {[%clk 0:01:12.9]} 22. Nhxf5+ {[%clk 0:02:06.3]} 22...
Ke5 {[%clk 0:01:05.2]} 23. e3 {[%clk 0:01:51.2]} 23... Nc5 {[%clk 0:00:56.6]}
24. b4 {[%clk 0:01:45.8]} 24... Bxf5 {[%clk 0:00:53.8]} 25. Rxc5 {[%clk
0:01:34.3]} 25... Rxc5 {[%clk 0:00:51.5]} 26. bxc5 {[%clk 0:01:34.8]} 26... Bd7
{[%clk 0:00:51.4]} 27. b4 {[%clk 0:01:03.2]} 27... Nc7 {[%clk 0:00:50.2]} 28.
Rc1 {[%clk 0:00:42.4]} 28... Nb5 {[%clk 0:00:49.7]} 29. Nb3 {[%clk 0:00:36.5]}
29... Bc6 {[%clk 0:00:40.5]} 30. Rf1 {[%clk 0:00:34.8]} 30... g6 {[%clk
0:00:39.4]} 31. d4+ {[%clk 0:00:28.2]} 31... Ke6 {[%clk 0:00:38.2]} 32. h4
{[%clk 0:00:28.2]} 32... Nc7 {[%clk 0:00:36.5]} 33. g5 {[%clk 0:00:27.5]} 33...
f5 {[%clk 0:00:36.1]} 34. Nc1 {[%clk 0:00:24.7]} 34... h6 {[%clk 0:00:35.5]} 35.
Nd3 {[%clk 0:00:24.2]} 35... hxg5 {[%clk 0:00:33.9]} 36. hxg5 {[%clk 0:00:25.1]}
36... Rh8 {[%clk 0:00:32.3]} 37. Nf4+ {[%clk 0:00:25.3]} 37... Kf7 {[%clk
0:00:31.7]} 38. Rh1 {[%clk 0:00:24]} 38... Rxh1 {[%clk 0:00:30.1]} 39. Bxh1
{[%clk 0:00:24.9]} 39... Kg7 {[%clk 0:00:26.5]} 40. Kc3 {[%clk 0:00:23.4]} 40...
Kf7 {[%clk 0:00:25.5]} 41. Bf3 {[%clk 0:00:23.3]} 41... Ne6 {[%clk 0:00:24.6]}
42. Nxe6 {[%clk 0:00:20]} 42... Kxe6 {[%clk 0:00:24.3]} 43. Kd2 {[%clk
0:00:20.4]} 43... Bb5 {[%clk 0:00:21]} 44. Ke1 {[%clk 0:00:20.4]} 44... Bd3
{[%clk 0:00:20.9]} 45. Kf2 {[%clk 0:00:20.6]} 45... Bb5 {[%clk 0:00:20.2]} 46.
Kg3 {[%clk 0:00:20.7]} 46... Bc6 {[%clk 0:00:20.6]} 47. Kf4 {[%clk 0:00:20.9]}
47... Bb5 {[%clk 0:00:20.8]} 48. Bd1 {[%clk 0:00:20.6]} 48... Bc4 {[%clk
0:00:20.9]} 49. Ba4 {[%clk 0:00:20.2]} 49... Bb5 {[%clk 0:00:21.1]} 50. Bxb5
{[%clk 0:00:18.9]} 50... axb5 {[%clk 0:00:20.8]} 51. Kf3 {[%clk 0:00:19]} 51...
Ke7 {[%clk 0:00:20.9]} 52. Kg3 {[%clk 0:00:19]} 52... Kf7 {[%clk 0:00:21.1]} 53.
Kf4 {[%clk 0:00:19.4]} 53... Ke6 {[%clk 0:00:21.3]} 54. Kf3 {[%clk 0:00:19.3]}
54... Ke7 {[%clk 0:00:21.5]} 55. Kg3 {[%clk 0:00:19.6]} 55... Kf7 {[%clk
0:00:21.8]} 56. Kf3 {[%clk 0:00:19.4]} 56... Ke7 {[%clk 0:00:21.8]} 1/2-1/2